fUST/lending_fUST_20240729
["ID","MTS","AMOUNT","RATE_DAILY","PERIOD"]
[333495252,1722205633185,-8824.89165121,0.0001469,2]
[333495253,1722205637133,-903.65291749,0.0001469,2]
[333495254,1722205653087,-331.66451947,0.000136,2]
[333495255,1722205653109,-254.56163453,0.00014693,2]
[333495256,1722205654098,-3153.39418977,0.00014693,2]
[333495257,1722205654120,-183.05721049,0.00014862,2]
[333495258,1722205654144,-500.0,0.00014961,2]
[333495259,1722205654170,-500.0,0.00014961,2]
[333495260,1722205654199,-1178.06,0.00014961,2]
[333495261,1722205654226,-500.0,0.00014961,2]
[333495262,1722205654255,-441.12627013,0.00014962,2]
[333495263,1722205654279,-352.51399078,0.00014962,2]
[333495264,1722205654303,-500.0,0.00014962,2]
[333495265,1722205654326,-500.0,0.00014962,2]
[333495266,1722205654349,-500.0,0.00014962,2]
[333495267,1722205654375,-500.0,0.00014962,2]
[333495268,1722205654402,-500.0,0.00014962,2]
[333495269,1722205654425,-500.0,0.00014962,2]
[333495270,1722205654451,-177.53,0.00014962,2]
[333495271,1722205654473,-500.0,0.00014962,2]
[333495272,1722205654497,-500.0,0.00014962,2]
[333495273,1722205654524,-297.27,0.00014962,2]
[333495274,1722205654547,-500.0,0.00014962,2]
[333495275,1722205654575,-500.0,0.00014962,2]
[333495276,1722205654598,-500.0,0.00014962,2]
[333495277,1722205654620,-500.0,0.00014962,2]
[333495278,1722205654641,-501.2481524,0.00014962,2]
[333495279,1722205654665,-500.0,0.00014962,2]
[333495280,1722205654692,-1048.0,0.00014962,2]
[333495281,1722205654714,-155.09009493,0.00014962,2]
[333495282,1722205654741,-306.36446995,0.00014962,2]
[333495283,1722205654763,-500.0,0.00014963,2]
[333495284,1722205654788,-1988.11,0.00014963,2]
[333495285,1722205654814,-911.07,0.00014963,2]
[333495286,1722205654839,-500.0,0.00014963,2]
[333495287,1722205654861,-150.0,0.00015,2]
[333495288,1722205654883,-783.83053196,0.00015,2]
[333495289,1722205654904,-951.2964008,0.00015,2]
[333495290,1722205654926,-500.0,0.00015235,2]
[333495291,1722205654951,-1146.43,0.00015235,2]
[333495292,1722205654973,-500.0,0.00015235,2]
[333495293,1722205654999,-500.0,0.00015235,2]
[333495294,1722205655025,-1178.06,0.00015235,2]
[333495295,1722205655048,-500.0,0.00015235,2]
[333495296,1722205655070,-500.0,0.00015236,2]
[333495297,1722205655091,-264.99281832,0.00015236,2]
[333495298,1722205655112,-500.0,0.00015236,2]
[333495299,1722205655133,-486.89,0.00015236,2]
[333495300,1722205655154,-349.01,0.00015236,2]
[333495301,1722205655176,-476.85,0.00015236,2]
[333495302,1722205655198,-500.0,0.00015236,2]
[333495303,1722205655220,-500.0,0.00015236,2]
[333495304,1722205655243,-500.0,0.00015236,2]
[333495305,1722205655266,-500.0,0.00015236,2]
[333495306,1722205655380,-356.11,0.00015236,2]
[333495307,1722205655406,-500.0,0.00015236,2]
[333495308,1722205655431,-500.0,0.00015236,2]
[333495309,1722205655456,-1048.0,0.00015236,2]
[333495310,1722205655477,-500.0,0.00015237,2]
[333495311,1722205655499,-1988.11,0.00015237,2]
[333495312,1722205655526,-911.07,0.00015237,2]
[333495313,1722205655550,-500.0,0.00015237,2]
[333495314,1722205655571,-338.1307632,0.00015253,2]
[333495315,1722205655591,-149.7622161,0.00015354,2]
[333495316,1722205655612,-464.79634912,0.00015508,2]
[333495317,1722205655635,-500.0,0.00015508,2]
[333495318,1722205655656,-314.89397533,0.00015508,2]
[333495319,1722205655678,-500.0,0.00015509,2]
[333495320,1722205655700,-1146.43,0.00015509,2]
[333495321,1722205655722,-500.0,0.00015509,2]
[333495322,1722205655746,-175.04,0.00015509,2]
[333495323,1722205655770,-1178.06,0.00015509,2]
[333495324,1722205655793,-500.0,0.00015509,2]
[333495325,1722205655816,-552.9846537,0.0001551,2]
[333495326,1722205655837,-154.63660398,0.0001551,2]
[333495327,1722205655858,-3882.76123741,0.0001551,2]
[333495328,1722205655878,-500.0,0.0001551,2]
[333495329,1722205655900,-500.0,0.0001551,2]
[333495330,1722205655921,-264.3,0.0001551,2]
[333495331,1722205655942,-500.0,0.0001551,2]
[333495332,1722205655963,-500.0,0.0001551,2]
[333495333,1722205655986,-500.0,0.0001551,2]
[333495334,1722205656009,-500.0,0.0001551,2]
[333495335,1722205656033,-500.0,0.0001551,2]
[333495336,1722205656057,-1048.0,0.0001551,2]
[333495337,1722205656078,-500.0,0.00015511,2]
[333495338,1722205656098,-1988.11,0.00015511,2]
[333495339,1722205656123,-323.07114246,0.00015511,2]
[333495344,1722205750103,-201.850519,0.00010959,2]
[333495412,1722205838112,-331.789829,0.00013962,2]
[333495414,1722205838125,-465.903565,0.00014247,2]
[333495416,1722205838138,-254.349567,0.00014335,2]
[333495418,1722205838147,-895.66398553,0.00014689,2]
[333495420,1722205838159,-21.33601447,0.00014689,2]
[333495422,1722205838169,-3391.90226249,0.0001469,2]
[333495425,1722205838181,-3473.81944957,0.0001469,2]
[333495427,1722205838192,-1219.41085575,0.0001469,2]
[333495430,1722205838207,-1958.1,0.0001469,2]
[333495469,1722205844540,-4141.206596,0.0001469,2]
[333495470,1722205844609,-6806.5,0.0001469,2]
[333495494,1722205846296,-9009.06083619,0.0001469,2]
[333495495,1722205846306,-500.0,0.00014961,2]
[333495496,1722205846316,-500.0,0.00014961,2]
[333495497,1722205846326,-500.0,0.00014961,2]
[333495498,1722205846335,-500.0,0.00014961,2]
[333495499,1722205846344,-320.94125071,0.00014961,2]
[333495500,1722205847171,-4.41619367,0.00014961,2]
[333495501,1722205847182,-570.42578273,0.00014961,2]
[333495502,1722205847191,-500.0,0.00014962,2]
[333495503,1722205847200,-355.12934191,0.00014962,2]
[333495504,1722205847210,-574.92415135,0.00014962,2]
[333495505,1722206834169,-158.768485,0.00012986,2]
[333495506,1722206834195,-221.024545,0.00013336,2]
[333495507,1722206834216,-181.966678,0.00013712,2]
[333495508,1722206834241,-221.024545,0.0001403,2]
[333495509,1722206834265,-300.0,0.00014039,2]
[333495510,1722206834287,-300.0,0.00014039,2]
[333495511,1722206834308,-227.75021107,0.0001404,2]
[333495512,1722206834330,-191.76768486,0.0001404,2]
[333495513,1722206839098,-207.53036305,0.0001404,2]
[333495514,1722206839120,-500.0,0.0001404,2]
[333495515,1722206839144,-500.0,0.0001404,2]
[333495516,1722206839166,-424.7436217,0.0001404,2]
[333495517,1722206842096,-75.2563783,0.0001404,2]
[333495518,1722206842120,-500.0,0.0001404,2]
[333495519,1722206842144,-500.0,0.0001404,2]
[333495520,1722206842166,-485.68009819,0.0001404,2]
[333495521,1722206842193,-500.0,0.0001404,2]
[333495522,1722206842219,-500.0,0.0001404,2]
[333495523,1722206842254,-456.05564321,0.0001404,2]
[333495524,1722206842280,-500.0,0.0001404,2]
[333495525,1722206842304,-250.0,0.0001404,2]
[333495526,1722206842328,-11212.3718305,0.00014041,2]
[333495527,1722206843095,-586.65978055,0.00014041,2]
[333495528,1722206845984,188.3868603,9.9e-05,2]
[333495529,1722206847135,-1552.51076142,0.00014041,2]
[333495578,1722207039933,-181.966678,0.0001328,2]
[333495582,1722207039943,-190.762175,0.00013699,2]
[333495583,1722207039954,-1276.48645426,0.00013952,2]
[333495597,1722207040466,-1687.13635123,0.00013952,2]
[333495598,1722207040613,-36.37719451,0.00013952,2]
[333495599,1722207040622,-248.92168806,0.0001404,2]
[333495608,1722207043458,-51.07831194,0.0001404,2]
[333495609,1722207043469,-250.0,0.0001404,2]
[333495610,1722207043479,-217.33951591,0.0001404,2]
[333495611,1722207043489,-3147.03128016,0.00014041,2]
[333495620,1722207046583,-13501.42634737,0.00014041,2]
[333495621,1722207046593,-250.0,0.00014057,2]
[333495622,1722207046603,-250.0,0.00014095,2]
[333495623,1722207046614,-250.0,0.00014134,2]
[333495624,1722207046625,-250.0,0.00014172,2]
[333495625,1722207046636,-250.0,0.00014211,2]
[333495626,1722207046649,-158.374979,0.00014247,2]
[333495627,1722207046659,-442.608386,0.00014247,2]
[333495628,1722207046670,-250.0,0.00014249,2]
[333495629,1722207046679,-250.0,0.00014288,2]
[333495630,1722207046690,-250.0,0.00014326,2]
[333495631,1722207046700,-250.0,0.00014365,2]
[333495632,1722207046712,-250.0,0.00014404,2]
[333495633,1722207046721,-250.0,0.00014442,2]
[333495634,1722207046731,-250.0,0.00014481,2]
[333495635,1722207046743,-250.0,0.00014519,2]
[333495636,1722207046754,-250.0,0.00014558,2]
[333495637,1722207046764,-250.0,0.00014596,2]
[333495638,1722207046776,-250.0,0.00014635,2]
[333495639,1722207046787,-250.0,0.00014673,2]
[333495640,1722207046796,-250.0,0.00014712,2]
[333495641,1722207046810,-250.0,0.0001475,2]
[333495642,1722207046822,-250.0,0.00014789,2]
[333495643,1722207046832,-500.0,0.00014999,2]
[333495644,1722207046844,-1003.13,0.00014999,2]
[333495645,1722207046855,-783.73,0.00014999,2]
[333495646,1722207046865,-500.0,0.00014999,2]
[333495647,1722207046874,-500.0,0.00014999,2]
[333495648,1722207046884,-500.0,0.00014999,2]
[333495649,1722207046893,-245.76003762,0.00014999,2]
[333495650,1722207046903,-1030.8,0.00014999,2]
[333495651,1722207046912,-159.42514775,0.00014999,2]
[333495652,1722207046922,-279.50863354,0.00014999,2]
[333495653,1722207046932,-500.0,0.00014999,2]
[333495654,1722207046941,-2846.09052378,0.00015,2]
[333495655,1722207046950,-288.10500458,0.00015,2]
[333495656,1722207046960,-951.2964008,0.00015,2]
[333495657,1722207046969,-338.1307632,0.00015235,2]
[333495658,1722207046979,-500.0,0.00015273,2]
[333495659,1722207046988,-1003.13,0.00015273,2]
[333495660,1722207046998,-783.73,0.00015273,2]
[333495661,1722207047009,-500.0,0.00015273,2]
[333495662,1722207047019,-500.0,0.00015273,2]
[333495663,1722207047029,-1030.8,0.00015273,2]
[333495664,1722207047038,-500.0,0.00015273,2]
[333495665,1722207047048,-500.0,0.00015507,2]
[333495666,1722207047058,-500.0,0.00015507,2]
[333495667,1722207047067,-329.72,0.00015507,2]
[333495668,1722207047076,-500.0,0.00015507,2]
[333495669,1722207047086,-500.0,0.00015508,2]
[333495670,1722207047097,-500.0,0.00015508,2]
[333495671,1722207047106,-500.0,0.00015508,2]
[333495672,1722207047117,-878.79,0.00015508,2]
[333495673,1722207047126,-1632.8,0.00015508,2]
[333495674,1722207047136,-153.0,0.00015534,2]
[333495675,1722207047145,-153.0,0.00015534,2]
[333495676,1722207047154,-153.0,0.00015534,2]
[333495677,1722207047164,-153.0,0.00015534,2]
[333495678,1722207047173,-500.0,0.00015547,2]
[333495679,1722207047182,-1003.13,0.00015547,2]
[333495680,1722207047192,-783.73,0.00015547,2]
[333495681,1722207047202,-500.0,0.00015547,2]
[333495682,1722207047211,-268.26,0.00015547,2]
[333495683,1722207047222,-1030.8,0.00015547,2]
[333495684,1722207047233,-500.0,0.00015547,2]
[333495685,1722207047245,-187.32606687,0.00015597,2]
[333495686,1722207047258,-3158.4215966,0.000156,5]
[333495687,1722207047271,-24479.0,0.000156,2]
[333495688,1722207047284,-150.112233,0.000156,2]
[333495689,1722207047295,-823.85124182,0.00015609,2]
[333495690,1722207047307,-609.90203,0.00015609,2]
[333495691,1722207047319,-500.0,0.00015696,2]
[333495692,1722207047330,-500.0,0.00015697,2]
[333495693,1722207047340,-500.0,0.00015697,2]
[333495694,1722207047353,-500.0,0.00015697,2]
[333495695,1722207047364,-4967.8684196,0.00015698,2]
[333495705,1722208028158,-191.49221591,0.00012886,2]
[333495706,1722208028183,-158.738486,0.00012986,2]
[333495707,1722208028206,-482.7372859,0.0001423,2]
[333495708,1722208028234,-159.482636,0.00014247,2]
[333495709,1722208028256,-329.40990951,0.00014247,2]
[333495710,1722208029122,-91.06805649,0.00014247,2]
[333495711,1722208029150,-402.4521228,0.00014298,2]
[333495712,1722208029172,-190.762176,0.00014368,2]
[333495713,1722208029195,-81.18160872,0.00014657,2]
[333495714,1722208035118,-106.65101428,0.00014657,2]
[333495715,1722208035145,-187.832623,0.00014848,2]
[333495716,1722208035168,-1762.0527175,0.00015,2]
[333495717,1722208048111,-300.0,0.00015,2]
[333495718,1722208049096,-784.03780628,0.00015,2]
[333495719,1722208049123,-71.80913474,0.00015039,2]
[333495720,1722208054132,-170.812828,0.00014759,2]
[333495721,1722208054159,-170.812828,0.00014869,2]
[333495722,1722208054186,-170.812828,0.00014979,2]
[333495723,1722208054211,-170.812828,0.00015089,2]
[333495724,1722208054236,-170.812828,0.00015199,2]
[333495725,1722208054261,-170.812828,0.00015309,2]
[333495726,1722208054286,-141.204365,0.00015419,2]
[333495730,1722208206512,166.666666,9.999e-05,2]
[333495731,1722208206540,56.79348276,9.999e-05,2]
[333495743,1722208232573,-158.710202,0.00012986,2]
[333495744,1722208232583,-150.112233,0.00013,2]
[333495745,1722208232595,-158.96848,0.00014594,2]
[333495746,1722208232605,-196.65636567,0.00015319,2]
[333495747,1722208232614,-29.608463,0.00015419,2]
[333495748,1722208232624,-154.91473489,0.00015419,2]
[333495749,1722208232634,-28.34102144,0.00015419,2]
[333495750,1722208232648,-1233.30505676,0.00015419,2]
[333495751,1722208232657,-288.10500458,0.00015419,2]
[333495752,1722208232668,-170.812828,0.00015528,2]
[333495753,1722208232677,-208.92614274,0.00015598,2]
[333495769,1722208238501,-566.95706397,0.00015598,2]
[333495771,1722208238511,-208.73247121,0.00015695,2]
[333495777,1722208238560,-18.26752879,0.00015695,2]
[333495779,1722208238570,-500.0,0.00015696,2]
[333495781,1722208238579,-500.0,0.00015696,2]
[333495783,1722208238590,-500.0,0.00015696,2]
[333495785,1722208238599,-500.0,0.00015696,2]
[333495787,1722208238609,-500.0,0.00015696,2]
[333495789,1722208238618,-500.0,0.00015696,2]
[333495790,1722208238627,-500.0,0.00015696,2]
[333495792,1722208238637,-500.0,0.00015696,2]
[333495793,1722208238646,-500.0,0.00015696,2]
[333495794,1722208238656,-459.08499506,0.00015696,2]
[333495933,1722208243680,-40.91500494,0.00015696,2]
[333495935,1722208243690,-500.0,0.00015696,2]
[333495937,1722208243700,-500.0,0.00015696,2]
[333495939,1722208243710,-276.05063619,0.00015696,2]
[333495940,1722208243719,-4629.78933873,0.00015698,2]
[333495941,1722208243729,-302.18389473,0.00015698,2]
[333495942,1722208243738,-500.0,0.00015698,2]
[333495943,1722208243748,-500.0,0.00015698,2]
[333495944,1722208243757,-500.0,0.00015698,2]
[333495945,1722208243767,-500.0,0.00015698,2]
[333495946,1722208243777,-500.0,0.00015698,2]
[333495947,1722208243787,-500.0,0.00015698,2]
[333495948,1722208243797,-500.0,0.00015698,2]
[333495949,1722208243807,-500.0,0.00015698,2]
[333495950,1722208243817,-502.50851254,0.00015698,2]
[333495951,1722208243827,-500.0,0.00015698,2]
[333495952,1722208243836,-500.0,0.00015698,2]
[333495953,1722208243846,-500.0,0.00015698,2]
[333495954,1722208243856,-877.74,0.00015698,2]
[333495955,1722208243866,-685.76,0.00015698,2]
[333495956,1722208243876,-500.0,0.00015698,2]
[333495957,1722208243886,-500.0,0.00015698,2]
[333495958,1722208243895,-1585.06,0.00015698,2]
[333495959,1722208243906,-500.0,0.00015698,2]
[333495960,1722208243916,-649.81957461,0.00015698,2]
[333495961,1722208243929,-437.29042539,0.00015698,2]
[333495962,1722208243939,-500.0,0.00015698,2]
[333495963,1722208243948,-500.0,0.00015698,2]
[333495964,1722208243959,-482.72599363,0.00015698,2]
[333496017,1722209239234,-158.710202,0.00012986,2]
[333496018,1722209239257,-158.96848,0.00013699,2]
[333496019,1722209239280,-166.666666,0.00014057,2]
[333496020,1722209239303,-157.685483,0.00014247,2]
[333496021,1722209239325,-261.62208649,0.00014247,2]
[333496022,1722209243128,-137.83198051,0.00014247,2]
[333496023,1722209243151,-448.39417349,0.00015,2]
[333496025,1722209244105,-9783.66013621,0.0001469,2]
[333496026,1722209252116,-352.19094581,0.000136,2]
[333496027,1722209252138,-20216.33986379,0.0001469,2]
[333496028,1722209252159,-1391.23682432,0.00015,2]
[333496029,1722209252183,-293.34440446,0.00015483,2]
[333496030,1722209252205,-254.56163453,0.00015553,2]
[333496031,1722209252230,-741.46611771,0.00015609,2]
[333496032,1722209252255,-300.0,0.00015696,2]
[333496033,1722209252280,-195.65604348,0.00015696,2]
[333496034,1722209252301,-1579.2107983,0.00015697,5]
[333496035,1722209252330,-500.0,0.00015697,2]
[333496036,1722209252353,-500.0,0.00015697,2]
[333496037,1722209252379,-500.0,0.00015697,2]
[333496038,1722209252403,-500.0,0.00015697,2]
[333496039,1722209252430,-771.6941658,0.00015697,2]
[333496046,1722209351114,-206.172784,0.00010959,2]
[333496047,1722209364085,-43.827216,0.00010959,2]
[333496048,1722209368100,-1167.76055007,0.000125,2]
[333496049,1722209368121,-2577.93063116,0.00013,2]
[333496050,1722209368142,-2089.82741258,0.000135,2]
[333496102,1722209433018,-158.713845,0.00012986,2]
[333496104,1722209433029,-29.42869624,0.000135,2]
[333496106,1722209433039,-157.685483,0.00014247,2]
[333496109,1722209433049,-199.585577,0.00015688,2]
[333496111,1722209433059,-232.50921034,0.00015689,2]
[333496113,1722209433074,-366.24752066,0.00015689,2]
[333496115,1722209433085,-990.9,0.00015697,2]
[333496117,1722209433095,-500.0,0.00015697,2]
[333496119,1722209433105,-500.0,0.00015697,2]
[333496121,1722209433115,-500.0,0.00015697,2]
[333496123,1722209433124,-500.0,0.00015697,2]
[333496125,1722209433134,-500.0,0.00015697,2]
[333496127,1722209433143,-809.01,0.00015697,2]
[333496129,1722209433153,-657.19,0.00015697,2]
[333496131,1722209433163,-500.0,0.00015697,2]
[333496133,1722209433173,-500.0,0.00015697,2]
[333496135,1722209433182,-500.0,0.00015697,2]
[333496137,1722209433192,-500.0,0.00015697,2]
[333496139,1722209433202,-1060.03,0.00015697,2]
[333496140,1722209433211,-500.0,0.00015697,2]
[333496141,1722209433221,-288.10500458,0.00015697,2]
[333496142,1722209433230,-500.0,0.00015697,2]
[333496143,1722209433240,-500.0,0.00015697,2]
[333496144,1722209433250,-385.06396972,0.00015697,2]
[333497304,1722210425146,-158.713845,0.00012986,2]
[333497305,1722210425167,-191.49221591,0.000134,2]
[333497306,1722210425188,-379.481363,0.00014247,2]
[333497307,1722210425209,-157.685483,0.00014247,2]
[333497308,1722210425230,-206.1727911,0.00014426,2]
[333497309,1722210425251,-2846.09052378,0.00015,2]
[333497310,1722210425272,-951.2964008,0.00015,2]
[333497311,1722210425292,-404.4979903,0.00015,2]
[333497312,1722210425316,-590.7412604,0.00015,2]
[333497313,1722210425335,-306.6875328,0.00015,2]
[333497314,1722210425354,-293.34440447,0.00015516,2]
[333497315,1722210425375,-772.28261501,0.00015597,2]
[333497316,1722210425395,-667.31950593,0.00015609,2]
[333497317,1722210425416,-199.21833935,0.00015696,2]
[333497318,1722210425436,-485.68009819,0.00015696,2]
[333497319,1722210425456,-500.0,0.00015696,2]
[333497320,1722210425477,-500.0,0.00015696,2]
[333497321,1722210425498,-500.0,0.00015696,2]
[333497322,1722210425518,-500.0,0.00015696,2]
[333497323,1722210425538,-500.0,0.00015696,2]
[333497324,1722210425558,-525.0,0.00015696,2]
[333497325,1722210425583,-500.0,0.00015696,2]
[333497326,1722210425604,-260.45007889,0.00015696,2]
[333497327,1722210425625,-500.0,0.00015696,2]
[333497328,1722210425646,-288.10500458,0.00015697,2]
[333497329,1722210425667,-500.0,0.00015697,2]
[333497330,1722210425686,-500.0,0.00015697,2]
[333497331,1722210425707,-500.0,0.00015697,2]
[333497332,1722210425822,-295.10449769,0.00015697,2]
[333497333,1722210433086,-204.89550231,0.00015697,2]
[333497334,1722210433107,-500.0,0.00015697,2]
[333497335,1722210433128,-500.0,0.00015697,2]
[333497336,1722210433150,-427.37848244,0.00015697,2]
[333497337,1722210437156,-72.62151756,0.00015697,2]
[333497338,1722210437178,-500.0,0.00015697,2]
[333497339,1722210437201,-14.03826299,0.00015697,2]
[333497340,1722210438093,-485.96173701,0.00015697,2]
[333497341,1722210438114,-500.0,0.00015697,2]
[333497342,1722210438138,-500.0,0.00015697,2]
[333497343,1722210438162,-500.0,0.00015697,2]
[333497344,1722210438183,-500.0,0.00015697,2]
[333497345,1722210438205,-500.0,0.00015697,2]
[333497346,1722210438225,-500.0,0.00015697,2]
[333497347,1722210438246,-500.0,0.00015697,2]
[333497348,1722210438266,-500.0,0.00015697,2]
[333497349,1722210438287,-500.0,0.00015697,2]
[333497350,1722210438307,-500.0,0.00015697,2]
[333497351,1722210438327,-233.52198101,0.00015697,2]
[333497352,1722210438347,-367.33677566,0.00015697,2]
[333497353,1722210438367,-500.0,0.00015697,2]
[333497354,1722210438388,-500.0,0.00015697,2]
[333497355,1722210438411,-356.87,0.00015697,2]
[333497356,1722210438448,-500.0,0.00015697,2]
[333497357,1722210438475,-500.0,0.00015697,2]
[333497358,1722210438497,-334.96977012,0.00015697,2]
[333497359,1722210449128,-165.03022988,0.00015697,2]
[333497360,1722210449149,-500.0,0.00015697,2]
[333497361,1722210449175,-500.0,0.00015697,2]
[333497362,1722210449197,-500.0,0.00015697,2]
[333497363,1722210449218,-236.98002505,0.00015697,2]
[333497365,1722210551111,-150.112233,0.00012986,2]
[333497411,1722210631859,-8.601612,0.00012986,2]
[333497413,1722210631870,-695.1620315,0.00015,2]
[333497988,1722210637877,-65.36542156,0.00015,2]
[333497990,1722210637886,-555.73719356,0.00015607,2]
[333498451,1722210643138,-120.0100946,0.00015607,2]
[333498453,1722210643148,-225.0,0.00015696,2]
[333498455,1722210643158,-195.60556432,0.00015696,2]
[333498457,1722210643167,-500.0,0.00015697,2]
[333498459,1722210643177,-482.41493037,0.00015697,2]
[333498461,1722210643187,-500.0,0.00015697,2]
[333498463,1722210643196,-500.0,0.00015697,2]
[333498465,1722210643206,-500.0,0.00015697,2]
[333498467,1722210643216,-417.77164917,0.00015697,2]
[333498469,1722210643227,-82.22835083,0.00015697,2]
[333498471,1722210643236,-533.85,0.00015697,2]
[333498473,1722210643246,-500.0,0.00015697,2]
[333498475,1722210643255,-262.59158535,0.00015697,2]
[333498478,1722210643267,-237.40841465,0.00015697,2]
[333498480,1722210643276,-500.0,0.00015697,2]
[333498482,1722210643286,-500.0,0.00015697,2]
[333498484,1722210643297,-469.69600919,0.00015697,2]
[333498766,1722210646037,-30.30399081,0.00015697,2]
[333498767,1722210646047,-500.0,0.00015697,2]
[333498768,1722210646058,-500.0,0.00015697,2]
[333498769,1722210646067,-264.3,0.00015697,2]
[333498771,1722210646078,-500.0,0.00015697,2]
[333498773,1722210646088,-500.0,0.00015697,2]
[333498775,1722210646098,-151.0,0.00015697,2]
[333498777,1722210646107,-500.0,0.00015697,2]
[333498779,1722210646116,-506.49774557,0.00015697,2]
[333498781,1722210646125,-151.0,0.00015697,2]
[333498782,1722210646135,-500.0,0.00015697,2]
[333498784,1722210646146,-500.0,0.00015697,2]
[333498787,1722210646158,-500.0,0.00015697,2]
[333498789,1722210646168,-500.0,0.00015697,2]
[333498791,1722210646179,-500.0,0.00015697,2]
[333498793,1722210646189,-500.0,0.00015697,2]
[333498795,1722210646199,-500.0,0.00015697,2]
[333498797,1722210646210,-500.0,0.00015697,2]
[333498799,1722210646220,-500.0,0.00015697,2]
[333498801,1722210646231,-288.10500458,0.00015697,2]
[333498803,1722210646242,-1575.94,0.00015697,2]
[333498805,1722210646251,-500.0,0.00015697,2]
[333498808,1722210646261,-1059.53,0.00015697,2]
[333498810,1722210646270,-500.0,0.00015697,2]
[333498812,1722210646279,-475.99386264,0.00015697,2]
[333498814,1722210646291,-24.00613736,0.00015697,2]
[333498816,1722210646300,-350.91202644,0.00015697,2]
[333498818,1722210646311,-149.08797356,0.00015697,2]
[333498820,1722210646321,-479.00538492,0.00015698,2]
[333498822,1722210646330,-151.0,0.00015698,2]
[333498824,1722210646339,-220.496676,0.00015698,2]
[333498826,1722210646349,-151.0,0.00015699,2]
[333498828,1722210646358,-151.0,0.00015699,2]
[333498830,1722210646367,-479.00538492,0.00015699,2]
[333498832,1722210646377,-500.0,0.00015707,2]
[333498834,1722210646386,-775.3,0.00015707,2]
[333498836,1722210646396,-643.27,0.00015707,2]
[333498838,1722210646406,-500.0,0.00015707,2]
[333498841,1722210646416,-500.0,0.00015707,2]
[333498842,1722210646426,-500.0,0.00015707,2]
[333498845,1722210646438,-500.0,0.00015707,2]
[333498847,1722210646449,-500.0,0.00015707,2]
[333498849,1722210646461,-500.0,0.00015707,2]
[333498851,1722210646471,-500.0,0.00015707,2]
[333498852,1722210646480,-500.0,0.00015707,2]
[333498854,1722210646489,-949.61,0.00015707,2]
[333498856,1722210646499,-500.0,0.00015707,2]
[333498858,1722210646508,-500.0,0.00015707,2]
[333498860,1722210646518,-500.0,0.00015707,2]
[333498862,1722210646530,-500.0,0.00015707,2]
[333498864,1722210646540,-789.60539916,0.00015708,5]
[333498866,1722210646549,-5070.19723238,0.00015708,2]
[333499369,1722211636112,-191.49221591,0.00012886,2]
[333499370,1722211636133,-159.334613,0.00012986,2]
[333499371,1722211636155,-178.18042,0.00013901,2]
[333499372,1722211636178,-178.18042,0.00014022,2]
[333499373,1722211636202,-58.2762951,0.00014142,2]
[333499374,1722211639117,-119.9041249,0.00014142,2]
[333499375,1722211639139,-482.7372859,0.00014246,2]
[333499376,1722211639161,-360.507294,0.00014247,2]
[333499377,1722211639182,-157.685483,0.00014247,2]
[333499378,1722211639207,-178.18042,0.00014263,2]
[333499379,1722211639234,-22.84592552,0.00014384,2]
[333499380,1722211645132,-155.33449448,0.00014384,2]
[333499381,1722211645154,-178.18042,0.00014505,2]
[333499382,1722211645176,-178.18042,0.00014625,2]
[333499383,1722211645200,-654.38599852,0.0001469,2]
[333499385,1722211653109,-300.0,0.0001469,2]